Workbook

Sheet Cover

Sheet Report
A2: Updated: January 15, 2015
A3: Revisions Noted in Bold
A4: Dynamically positioned «
L5: Dayrate on | M5: Dayrate on | O5: Estimated Out of Service Days (4) | T5: Estimated Out of Service Days (4)
E6: Yr. (1) | F6: Water | G6: Drilling | J6: Estimated | K6: Estimated | L6: Current | M6: Previous
B7: Footnote | C7: Floater | D7: Dynamically | E7: Entered | F7: Depth | G7: Depth | J7: Contract | K7: Expiration | L7: Contract (3) | M7: Contract (3) | O7: 2014 | T7: 2015
A8: Rig Type/Name | B8: References | C8: Type | D8: Positioned | E8: Service | F8: (Feet) | G8: (Feet) | H8: Location | I8: Customer | J8: Start Date (2) | K8: Date (2) | L8: (Dollars) | M8: (Dollars) | O8: Q1 | P8: Q2 | Q8: Q3 | R8: Q4 | T8: Q1 | U8: Q2 | V8: Q3 | W8: Q4
A10: Rigs Under Construction (12)
A12: Deepwater Thalassa | B12: (6), (11) | C12: ship | D12: « | E12: TBA | F12: 12000 | G12: 40000 | H12: TBA | I12: Shell | J12: Q1 2016 | K12: Q1 2026 | L12: 519000 | M12: N/A
A13: Deepwater Proteus | B13: (6), (11) | C13: ship | D13: « | E13: TBA | F13: 12000 | G13: 40000 | H13: TBA | I13: Shell | J13: Q2 2016 | K13: Q2 2026 | L13: 519000 | M13: N/A
A14: Deepwater Pontus | B14: (6), (11) | C14: ship | D14: « | E14: TBA | F14: 12000 | G14: 40000 | H14: TBA | I14: Shell | J14: Q1 2017 | K14: Q4 2026 | L14: 519000 | M14: N/A
A15: Deepwater Poseidon | B15: (6), (11) | C15: ship | D15: « | E15: TBA | F15: 12000 | G15: 40000 | H15: TBA | I15: Shell | J15: Q2 2017 | K15: Q2 2027 | L15: 519000 | M15: N/A
A16: Deepwater Conqueror | B16: (6), (8), (11) | C16: ship | D16: « | E16: TBA | F16: 12000 | G16: 40000 | H16: USGOM | I16: Chevron | J16: Q4 2016 | K16: Q4 2021 | L16: 599000 | M16: N/A
A17: JSPL Ultra-Deepwater Drillship TBN 1 | B17: -9 | C17: ship | D17: « | E17: TBA | F17: 12000 | G17: 40000 | H17: TBA
A18: JSPL Ultra-Deepwater Drillship TBN 2 | B18: -9 | C18: ship | D18: « | E18: TBA | F18: 12000 | G18: 40000 | H18: TBA
A19: Transocean Cepheus | B19: -12 | E19: TBA | F19: 400 | G19: 35000 | H19: TBA
A20: Transocean Cassiopeia | B20: -12 | E20: TBA | F20: 400 | G20: 35000 | H20: TBA
A21: Transocean Centaurus | B21: -12 | E21: TBA | F21: 400 | G21: 35000 | H21: TBA
A22: Transocean Cetus | B22: -12 | E22: TBA | F22: 400 | G22: 35000 | H22: TBA
A23: Transocean Circinus | B23: -12 | E23: TBA | F23: 400 | G23: 35000 | H23: TBA
A25: High Specification Floater: Ultra-Deepwater (29)
A27: Deepwater Asgard | C27: ship | D27: « | E27: 2014 | F27: 12000 | G27: 40000 | H27: TBA | I27: TBA | J27: 2014-08-20 | K27: 2017-07-31 | L27: 600000 | M27: N/A | O27: 0 | P27: 0 | Q27: 0 | R27: 0 | T27: 0 | U27: 0 | V27: 0 | W27: 0
A28: Deepwater Invictus | B28: (6), (20) | C28: ship | D28: « | E28: 2014 | F28: 12000 | G28: 40000 | H28: USGOM | I28: BHP Billiton | J28: 2014-07-28 | K28: 2017-03-26 | L28: 595000 | M28: N/A | O28: 0 | P28: 0 | Q28: 0 | R28: 0 | T28: 0 | U28: 0 | V28: 0 | W28: 0
A29: Discoverer Americas | B29: -6 | C29: ship | D29: « | E29: 2009 | F29: 12000 | G29: 40000 | H29: Tanzania | I29: Statoil | J29: 2014-03-15 | K29: 2016-03-01 | L29: 735000 | M29: 636000 | O29: 0 | P29: 0 | Q29: 0 | R29: 28 | T29: 0 | U29: 0 | V29: 0 | W29: 0
A30: Deepwater Champion | B30: -6 | C30: ship | D30: « | E30: 2011 | F30: 12000 | G30: 40000 | H30: USGOM | I30: ExxonMobil | J30: 2012-06-01 | K30: 2015-11-01 | L30: 677000 | M30: 655000 | O30: 0 | P30: 0 | Q30: 0 | R30: 0 | T30: 0 | U30: 4 | V30: 10 | W30: 0
A31: Discoverer Clear Leader | B31: (6), (8), (17) | C31: ship | D31: « | E31: 2009 | F31: 12000 | G31: 40000 | H31: USGOM | I31: Chevron | J31: 2014-11-01 | K31: 2018-10-01 | L31: 590000 | M31: 569000 | O31: 0 | P31: 0 | Q31: 0 | R31: 18 | T31: 0 | U31: 0 | V31: 0 | W31: 0
A32: Discoverer Inspiration | B32: (6), (17) | C32: ship | D32: « | E32: 2010 | F32: 12000 | G32: 40000 | H32: USGOM | I32: Chevron | J32: 2010-02-01 | K32: 2015-03-27 | L32: 523000 | M32: 494000 | O32: 0 | P32: 0 | Q32: 0 | R32: 0 | T32: 4 | U32: 17 | V32: 0 | W32: 0
B33: (6), (8), (17) | H33: USGOM | I33: Chevron | J33: 2015-03-30 | K33: 2020-03-31 | L33: 585000 | M33: 523000
A34: Dhirubhai Deepwater KG1 | B34: (6), (7), (8) | C34: ship | D34: « | E34: 2009 | F34: 12000 | G34: 35000 | H34: Brazil | I34: Petrobras | J34: 2014-12-31 | K34: 2017-12-01 | L34: 427000 | M34: 510000 | O34: 0 | P34: 0 | Q34: 59.75 | R34: 92 | T34: 0 | U34: 0 | V34: 0 | W34: 0
A35: Dhirubhai Deepwater KG2 | C35: ship | D35: « | E35: 2010 | F35: 12000 | G35: 35000 | H35: India | I35: Reliance | J35: 2012-03-01 | K35: 2015-02-01 | L35: 510000 | M35: 573000 | O35: 0 | P35: 13 | Q35: 0 | R35: 0 | T35: 15 | U35: 0 | V35: 55 | W35: 13
H36: India | I36: Reliance | J36: 2015-02-01 | K36: 2015-07-16 | L36: 395000 | M36: 510000
A37: Discoverer India | B37: -14 | C37: ship | D37: « | E37: 2010 | F37: 12000 | G37: 40000 | H37: USGOM | I37: Reliance | J37: 2013-09-01 | K37: 2016-09-01 | L37: 528000 | M37: 499000 | O37: 0 | P37: 0 | Q37: 0 | R37: 0 | T37: 0 | U37: 45 | V37: 0 | W37: 0
H38: India | I38: Reliance | J38: 2016-09-01 | K38: 2020-11-01 | L38: 508000 | M38: 528000
A39: Petrobras 10000 | B39: (6), (7), (8) | C39: ship | D39: « | E39: 2009 | F39: 12000 | G39: 37500 | H39: Brazil | I39: Petrobras | J39: 2011-02-01 | K39: 2019-07-01 | L39: 436000 | M39: N/A | O39: 0 | P39: 0 | Q39: 30 | R39: 21 | T39: 0 | U39: 0 | V39: 0 | W39: 0
A40: Discoverer Deep Seas | B40: -6 | C40: ship | D40: « | E40: 2001 | F40: 10000 | G40: 35000 | H40: USGOM | I40: Murphy Oil | J40: 2013-10-31 | K40: 2016-11-30 | L40: 608000 | M40: 456000 | O40: 0 | P40: 0 | Q40: 0 | R40: 0 | T40: 0 | U40: 78 | V40: 0 | W40: 0
A41: Discoverer Enterprise | C41: ship | D41: « | E41: 1999 | F41: 10000 | G41: 35000 | H41: USGOM | I41: BP | J41: 2014-12-21 | K41: 2015-06-30 | L41: 399000 | M41: 615000 | O41: 0 | P41: 0 | Q41: 0 | R41: 0 | T41: 0 | U41: 0 | V41: 0 | W41: 0
A42: Discoverer Spirit | C42: ship | D42: « | E42: 2000 | F42: 10000 | G42: 35000 | K42: Idle | O42: 0 | P42: 0 | Q42: 60.75 | R42: 61 | T42: 0 | U42: 0 | V42: 0 | W42: 0
A43: GSF C.R. Luigs | C43: ship | D43: « | E43: 2000 | F43: 10000 | G43: 35000 | H43: USGOM | O43: 0 | P43: 0 | Q43: 0 | R43: 82 | T43: 29 | U43: 0 | V43: 0 | W43: 0
A44: GSF Jack Ryan | C44: ship | D44: « | E44: 2000 | F44: 10000 | G44: 35000 | K44: Idle | O44: 0 | P44: 0 | Q44: 0 | R44: 0 | T44: 0 | U44: 0 | V44: 0 | W44: 0
A45: Deepwater Discovery | C45: ship | D45: « | E45: 2000 | F45: 10000 | G45: 30000 | K45: Idle | O45: 0 | P45: 0 | Q45: 0 | R45: 0 | T45: 0 | U45: 0 | V45: 0 | W45: 0
A46: Deepwater Frontier | C46: ship | D46: « | E46: 1999 | F46: 10000 | G46: 30000 | K46: Idle | O46: 8.25 | P46: 0 | Q46: 0 | R46: 0 | T46: 0 | U46: 0 | V46: 0 | W46: 0
A47: Deepwater Millennium | B47: (7) | C47: ship | D47: « | E47: 1999 | F47: 10000 | G47: 30000 | H47: Australia | I47: Woodside | J47: 2014-04-01 | K47: 2015-04-15 | L47: 589000 | M47: 570000 | O47: 90 | P47: 24.375 | Q47: 0 | R47: 0 | T47: 0 | U47: 0 | V47: 0 | W47: 0
B48: (7) | H48: Australia | I48: Woodside | J48: 2015-04-15 | K48: 2016-04-21 | L48: 600000 | M48: =+L47 -> 589000
A49: Deepwater Pathfinder | B49: -22 | C49: ship | D49: « | E49: 1998 | F49: 10000 | G49: 30000 | K49: Idle | O49: - | P49: - | Q49: - | R49: - | T49: 0 | U49: 0 | V49: 0 | W49: 0
A50: Deepwater Expedition | C50: ship | D50: « | E50: 1999 | F50: 8500 | G50: 30000 | K50: Idle | O50: 0 | P50: 0 | Q50: 0 | R50: 0 | T50: 0 | U50: 0 | V50: 0 | W50: 0
A51: Cajun Express | C51: semi | D51: « | E51: 2001 | F51: 8500 | G51: 35000 | H51: Ivory Coast | I51: CNR | J51: 2014-12-14 | K51: 2015-12-01 | L51: 495000 | M51: 487000 | O51: 0 | P51: 0 | Q51: 0 | R51: 36 | T51: 11 | U51: 0 | V51: 0 | W51: 0
A52: Deepwater Nautilus | B52: (6), (8) | C52: semi | E52: 2000 | F52: 8000 | G52: 30000 | H52: USGOM | I52: Shell | J52: 2012-08-01 | K52: 2017-08-01 | L52: 531000 | M52: 551000 | O52: 0 | P52: 0 | Q52: 0 | R52: 0 | T52: 28 | U52: 91 | V52: 15 | W52: 0
A53: GSF Explorer | C53: ship | D53: « | E53: 1972/1998 | F53: 7800 | G53: 30000 | K53: Idle | O53: 0 | P53: 0 | Q53: 0 | R53: 0 | T53: 0 | U53: 0 | V53: 0 | W53: 0
A54: Discoverer Luanda | B54: (6), (13) | C54: ship | D54: « | E54: 2010 | F54: 7500 | G54: 40000 | H54: Angola | I54: BP | J54: 2011-01-01 | K54: 2018-01-01 | L54: 483000 | M54: N/A | O54: 0 | P54: 0 | Q54: 0 | R54: 0 | T54: 14 | U54: 0 | V54: 0 | W54: 0
A55: GSF Development Driller I | B55: (7), (8) | C55: semi | D55: « | E55: 2005 | F55: 7500 | G55: 37500 | H55: Angola | I55: ExxonMobil | J55: 2015-05-16 | K55: 2016-04-16 | L55: 382000 | M55: N/A | O55: 0 | P55: 0 | Q55: 0 | R55: 0 | T55: 90 | U55: 23 | V55: 0 | W55: 0
B56: (7), (8) | H56: Angola | I56: ExxonMobil | J56: =+K55 -> 2016-04-16 | K56: 2017-04-16 | L56: 385000 | M56: =+L55 -> 382000
A57: GSF Development Driller II | B57: -8 | C57: semi | D57: « | E57: 2005 | F57: 7500 | G57: 37500 | H57: Romania | I57: Lukoil | J57: 2014-10-01 | K57: 2015-07-28 | L57: 355000 | M57: 606000 | O57: 0 | P57: 72.5 | Q57: 92 | R57: 31 | T57: 0 | U57: 0 | V57: 0 | W57: 0
A58: Development Driller III | B58: (6), (17) | C58: semi | D58: « | E58: 2009 | F58: 7500 | G58: 37500 | H58: USGOM | I58: BP | J58: 2009-11-01 | K58: 2016-11-01 | L58: 431000 | M58: N/A | O58: 0 | P58: 0 | Q58: 0 | R58: 0 | T58: 0 | U58: 0 | V58: 0 | W58: 0
A59: Sedco Energy | B59: (19) | C59: semi | D59: « | E59: 2001 | F59: 7500 | G59: 35000 | H59: Congo | I59: Total | J59: 2014-09-19 | K59: 2015-10-24 | L59: 380000 | M59: N/A | O59: 0 | P59: 0 | Q59: 53.47916667 | R59: 4 | T59: 0 | U59: 0 | V59: 0 | W59: 0
A60: Sedco Express | B60: (6) | C60: semi | D60: « | E60: 2001 | F60: 7500 | G60: 35000 | H60: Nigeria | I60: CAMAC | J60: 2014-12-27 | K60: 2015-01-01 | L60: 300000 | M60: N/A | O60: 0 | P60: 0 | Q60: 0 | R60: 0 | T60: 0 | U60: 0 | V60: 0 | W60: 0
M62: Total Estimated Days Out of Service | O62: =SUM(O29:O60) -> 98.25 | P62: =SUM(P29:P60) -> 109.875 | Q62: =SUM(Q29:Q60) -> 295.9791667 | R62: =SUM(R27:R60) -> 373 | T62: =SUM(T27:T60) -> 191 | U62: =SUM(U27:U60) -> 258 | V62: =SUM(V27:V60) -> 80 | W62: =SUM(W27:W60) -> 13
M63: Estimated Average Contract Dayrate(5) | O63: 547000 | P63: 554000 | Q63: 555000 | R63: 545000 | T63: 520000 | U63: 507000 | V63: 528000 | W63: 536000
A65: High Specification Floater: Deepwater (8)
A67: Deepwater Navigator | B67: (7), (8), (15) | C67: ship | D67: « | E67: 1971/2000 | F67: 7200 | G67: 25000 | H67: Brazil | I67: Petrobras | J67: 2011-05-01 | K67: 2016-02-01 | L67: 371000 | M67: 190000 | O67: 0 | P67: 0 | Q67: 0 | R67: 7.729166667 | T67: 0 | U67: 0 | V67: 0 | W67: 0
A68: Transocean Marianas | B68: (6), (8) | C68: semi | E68: 1979/1998 | F68: 7000 | G68: 30000 | H68: South Africa | I68: PetroSA | J68: 2014-06-07 | K68: 2015-04-30 | L68: 370000 | M68: N/A | O68: 10 | P68: 71.58333333 | Q68: 0 | R68: 0 | T68: 0 | U68: 0 | V68: 0 | W68: 0
A69: Sedco 706 | B69: (6), (7), (8) | C69: semi | D69: « | E69: 1976/1994/ 2008 | F69: 6500 | G69: 25000 | H69: Brazil | I69: Petrobras | J69: 2014-05-01 | K69: 2016-09-01 | L69: 290000 | M69: 361000 | O69: 0 | P69: 22.75 | Q69: 0 | R69: 0 | T69: 59 | U69: 1 | V69: 0 | W69: 0
A70: Sedco 702 | B70: (6), (7) | C70: semi | D70: « | E70: 1973/2007 | F70: 6500 | G70: 25000 | H70: Nigeria | I70: Shell | J70: 2012-09-01 | K70: 2016-02-01 | L70: 461000 | M70: 357000 | O70: 59.60416667 | P70: 0 | Q70: 0 | R70: 0 | T70: 0 | U70: 0 | V70: 0 | W70: 0
A71: Sedco 707 | C71: semi | D71: « | E71: 1976/1997 | F71: 6500 | G71: 25000 | K71: Idle | O71: 0 | P71: 0 | Q71: 0 | R71: 0 | T71: 0 | U71: 0 | V71: 0 | W71: 0
A72: GSF Celtic Sea | C72: semi | E72: 1982/1998 | F72: 5750 | G72: 25000 | H72: Angola | I72: ExxonMobil | J72: 2013-08-16 | K72: 2015-01-26 | L72: 332000 | M72: 324000 | O72: 0 | P72: 0 | Q72: 0 | R72: 0 | T72: 0 | U72: 0 | V72: 0 | W72: 0
H73: Angola | I73: Vaalco | J73: 2015-01-26 | K73: 2015-03-16 | L73: 338000 | M73: 332000
A74: Jack Bates | B74: -7 | C74: semi | E74: 1986/1997 | F74: 5400 | G74: 30000 | H74: Australia | I74: Inpex | J74: 2014-12-27 | K74: 2015-05-01 | L74: 420000 | M74: 440000 | O74: 0 | P74: 0 | Q74: 15.04166667 | R74: 0 | T74: 0 | U74: 0 | V74: 0 | W74: 0
H75: Australia | I75: Inpex | J75: 2015-05-01 | K75: 2016-02-18 | L75: 370000 | M75: 420000
A76: M.G. Hulme, Jr. | C76: semi | E76: 1983/1996 | F76: 5000 | G76: 25000 | H76: Malaysia | I76: Petronas | J76: 2014-12-31 | K76: 2015-02-26 | L76: 174000 | M76: N/A | O76: 0 | P76: 35.39583333 | Q76: 7 | R76: 41 | T76: 0 | U76: 0 | V76: 0 | W76: 0
B77: -7 | H77: TBA | I77: TBA | J77: 2015-02-26 | K77: 2015-11-23 | L77: 200000 | M77: =+L76 -> 174000
M79: Total Estimated Days Out of Service | O79: =SUM(O67:O77) -> 69.60416667 | P79: =SUM(P67:P77) -> 129.7291667 | Q79: =SUM(Q67:Q77) -> 22.04166667 | R79: =SUM(R67:R77) -> 48.72916667 | T79: =SUM(T67:T77) -> 59 | U79: =SUM(U67:U77) -> 1 | V79: =SUM(V67:V77) -> 0 | W79: =SUM(W67:W77) -> 0
M80: Estimated Average Contract Dayrate(5) | O80: 378000 | P80: 386000 | Q80: 376000 | R80: 382000 | T80: 368000 | U80: 379000 | V80: 358000 | W80: 351000
A82: High Specification Floater: Harsh Environment (7)
A84: Transocean Barents | B84: (6), (7) | C84: semi | D84: « | E84: 2009 | F84: 10000 | G84: 30000 | H84: NNS | I84: Shell | J84: 2014-09-21 | K84: 2015-09-01 | L84: 562000 | M84: 574000 | O84: 0 | P84: 0 | Q84: 67.60416667 | R84: 0 | T84: 0 | U84: 0 | V84: 0 | W84: 0
A85: Transocean Spitsbergen | B85: (6), (7), (16), (23) | C85: semi | D85: « | E85: 2010 | F85: 10000 | G85: 30000 | H85: NNS | I85: Statoil | J85: 2013-07-01 | K85: 2015-07-01 | L85: 509000 | M85: 504000 | O85: 0 | P85: 0 | Q85: 0 | R85: 0 | T85: 51 | U85: 0 | V85: 0 | W85: 0
A86: Henry Goodrich | B86: -6 | C86: semi | E86: 1985/2007 | F86: 5000 | G86: 30000 | H86: Canada | I86: Suncor | J86: 2014-06-01 | K86: 2015-03-20 | L86: 476000 | M86: 346000 | O86: 0 | P86: 0 | Q86: 0 | R86: 0 | T86: 13 | U86: 91 | V86: 0 | W86: 0
A87: Transocean Leader | B87: (6), (7) | C87: semi | E87: 1987/1997 | F87: 4500 | G87: 25000 | H87: NNS | I87: Statoil | J87: 2012-03-01 | K87: 2015-03-01 | L87: 377000 | M87: 469000 | O87: 0 | P87: 0 | Q87: 0 | R87: 0 | T87: 0 | U87: 45 | V87: 0 | W87: 0
H88: UKNS | I88: Enquest | J88: 2015-05-18 | K88: 2018-05-17 | L88: 335000 | M88: 377000
B89: -21 | H89: UKNS | I89: Enquest | J89: 2018-05-17 | K89: 2019-05-17 | L89: 305000 | M89: 335000
A90: Paul B. Loyd, Jr. | B90: -7 | C90: semi | E90: 1990 | F90: 2000 | G90: 25000 | H90: UKNS | I90: BP | J90: 2014-09-01 | K90: 2015-03-01 | L90: 441000 | M90: 441000 | O90: 0 | P90: 0 | Q90: 0 | R90: 0 | T90: 0 | U90: 0 | V90: 43 | W90: 50
B91: -7 | H91: UKNS | I91: BP | J91: 2015-03-01 | K91: 2015-08-01 | L91: 423000 | M91: =L90 -> 441000
B92: -7 | H92: UKNS | I92: BP | J92: 2015-11-20 | K92: 2016-03-17 | L92: 429000 | M92: =L91 -> 423000
B93: -7 | H93: UKNS | I93: BP | J93: 2016-03-01 | K93: 2016-09-01 | L93: 436000 | M93: =L92 -> 429000
B94: -7 | H94: UKNS | I94: BP | J94: 2016-09-01 | K94: 2017-03-01 | L94: 442000 | M94: =L93 -> 436000
B95: -7 | H95: UKNS | I95: BP | J95: 2017-03-01 | K95: 2017-06-01 | L95: 449000 | M95: =L94 -> 442000
A96: Transocean Arctic | B96: (6), (7) | C96: semi | E96: 1986 | F96: 1650 | G96: 25000 | H96: NNS | I96: Rig Management Norway | J96: 2014-07-31 | K96: 2016-01-31 | L96: 387000 | M96: 414000 | O96: 0 | P96: 0 | Q96: 63.9375 | R96: 0 | T96: 0 | U96: 0 | V96: 0 | W96: 0
B97: (6), (7) | H97: NNS | I97: OMV | J97: 2016-01-31 | K97: 2016-06-01 | L97: 486000 | M97: 387000
A98: Polar Pioneer | B98: -6 | C98: semi | E98: 1985 | F98: 1500 | G98: 25000 | H98: Alaska | I98: Shell | J98: 2014-11-24 | K98: 2015-02-28 | L98: 592000 | M98: 523000 | O98: 0 | P98: 74.375 | Q98: 78 | R98: 92 | T98: 0 | U98: 0 | V98: 0 | W98: 0
B99: -6 | H99: Alaska | I99: Shell | J99: 2015-02-28 | K99: 2015-03-31 | L99: 561000 | M99: 592000
B100: -6 | H100: Alaska | I100: Shell | J100: 2015-03-31 | K100: 2015-04-30 | L100: 592000 | M100: 561000
B101: -6 | H101: Alaska | I101: Shell | J101: 2015-04-30 | K101: 2015-06-30 | L101: 561000 | M101: 592000
B102: -6 | H102: Alaska | I102: Shell | J102: 2015-06-25 | K102: 2015-10-25 | L102: 623000 | M102: 561000
B103: -6 | H103: Alaska | I103: Shell | J103: 2015-10-25 | K103: 2015-12-31 | L103: 561000 | M103: 623000
B104: -6 | H104: Alaska | I104: Shell | J104: 2015-12-31 | K104: 2016-04-30 | L104: 592000 | M104: 561000
B105: -6 | H105: Alaska | I105: Shell | J105: 2016-04-30 | K105: 2016-06-30 | L105: 561000 | M105: 592000
B106: -6 | H106: Alaska | I106: Shell | J106: 2016-06-30 | K106: 2016-10-31 | L106: 623000 | M106: 561000
B107: -6 | H107: Alaska | I107: Shell | J107: 2016-10-31 | K107: 2016-12-31 | L107: 561000 | M107: 623000
B108: -6 | H108: Alaska | I108: Shell | J108: 2016-12-31 | K108: 2017-06-30 | L108: 592000 | M108: 561000
M111: Total Estimated Days Out of Service | O111: =SUM(O84:O108) -> 0 | P111: =SUM(P84:P108) -> 74.375 | Q111: =SUM(Q84:Q108) -> 209.5416667 | R111: =SUM(R84:R108) -> 92 | T111: =SUM(T84:T108) -> 64 | U111: =SUM(U84:U108) -> 136 | V111: =SUM(V84:V108) -> 43 | W111: =SUM(W84:W108) -> 50
M112: Estimated Average Contract Dayrate(5) | O112: 464000 | P112: 460000 | Q112: 467000 | R112: 485000 | T112: 470000 | U112: 469000 | V112: 471000 | W112: 398000
A114: Midwater Floaters (17)
A116: Transocean Legend | B116: -7 | C116: semi | E116: 1983 | F116: 3500 | G116: 25000 | H116: Australia | I116: Conoco Phillips | J116: 2014-04-01 | K116: 2015-01-20 | L116: 415000 | M116: 293000 | O116: 26.54166667 | P116: 0 | Q116: 5.75 | R116: 0 | T116: 0 | U116: 0 | V116: 0 | W116: 0
A117: Transocean Amirante | C117: semi | E117: 1978/1997 | F117: 3500 | G117: 25000 | H117: Libya | I117: ENI | J117: 2014-12-01 | K117: 2015-11-01 | L117: 335000 | M117: N/A | O117: 0 | P117: 15 | Q117: 92 | R117: 64 | T117: 0 | U117: 0 | V117: 0 | W117: 0
A118: Transocean Driller | B118: (7), (8) | C118: semi | E118: 1991 | F118: 3000 | G118: 25000 | H118: Brazil | I118: Petrobras | J118: 2010-07-01 | K118: 2016-07-01 | L118: 262000 | M118: 116000 | O118: 0 | P118: 0 | Q118: 0 | R118: 0 | T118: 0 | U118: 0 | V118: 0 | W118: 0
A119: GSF Rig 135 | B119: -7 | C119: semi | E119: 1983 | F119: 2800 | G119: 25000 | H119: Nigeria | I119: NPDC | J119: 2014-11-01 | K119: 2015-06-17 | L119: 311000 | M119: 387000 | O119: 0 | P119: 0 | Q119: 0 | R119: 0 | T119: 0 | U119: 0 | V119: 0 | W119: 0
A120: GSF Rig 140 | B120: (6) | C120: semi | E120: 1983 | F120: 2800 | G120: 25000 | H120: India | I120: ONGC | J120: 2012-03-01 | K120: 2015-05-15 | L120: 262000 | M120: N/A | O120: 0 | P120: 0 | Q120: 0 | R120: 0 | T120: 0 | U120: 0 | V120: 22 | W120: 23
A121: GSF Aleutian Key | C121: semi | E121: 1976/1999/2001 | F121: 2300 | G121: 25000 | H121: Gabon | K121: Stacked | O121: 0 | P121: 0 | Q121: 0 | R121: 0 | T121: 0 | U121: 0 | V121: 0 | W121: 0
A122: Sedco 711 | C122: semi | E122: 1982 | F122: 1800 | G122: 25000 | H122: UKNS | I122: Talisman | J122: 2014-12-01 | K122: 2015-06-01 | L122: 361000 | M122: 355000 | O122: 12.91666667 | P122: 0 | Q122: 0 | R122: 11 | T122: 0 | U122: 0 | V122: 0 | W122: 0
H123: UKNS | I123: Talisman | J123: 2015-06-01 | K123: 2015-12-01 | L123: 366000 | M123: 361000
A124: Transocean John Shaw | B124: -7 | C124: semi | E124: 1982 | F124: 1800 | G124: 25000 | H124: UKNS | I124: Taqa | J124: 2014-04-27 | K124: 2015-01-28 | L124: 353000 | M124: 360000 | O124: 81.45833333 | P124: 25.72916667 | Q124: 0 | R124: 0 | T124: 0 | U124: 0 | V124: 0 | W124: 0
B125: -7 | H125: UKNS | I125: Taqa | J125: =+K124 -> 2015-01-28 | K125: 2016-01-28 | L125: 408000 | M125: =+L124 -> 353000
A126: GSF Arctic III | C126: semi | E126: 1984 | F126: 1800 | G126: 25000 | K126: Idle | O126: 0 | P126: 0 | Q126: 0 | R126: 0 | T126: 0 | U126: 0 | V126: 0 | W126: 0
A127: Sedco 712 | C127: semi | E127: 1983 | F127: 1600 | G127: 25000 | H127: UKNS | I127: Talisman | J127: 2014-10-01 | K127: 2015-04-01 | L127: 391000 | M127: 386000 | O127: 0 | P127: 0 | Q127: 0 | R127: 0 | T127: 0 | U127: 0 | V127: 0 | W127: 0
H128: UKNS | I128: Talisman | J128: 2015-04-01 | K128: 2015-10-01 | L128: 397000 | M128: 391000
H129: UKNS | I129: Talisman | J129: 2015-10-01 | K129: 2016-04-01 | L129: 403000 | M129: 397000
H130: UKNS | I130: Talisman | J130: 2016-04-01 | K130: 2016-10-01 | L130: 409000 | M130: 403000
A131: Sedco 714 | B131: -7 | C131: semi | E131: 1983/1997 | F131: 1600 | G131: 25000 | H131: UKNS | I131: Total | J131: 2014-09-01 | K131: 2015-09-01 | L131: 433000 | M131: 401000 | O131: 0 | P131: 32.625 | Q131: 90.3125 | R131: 0 | T131: 0 | U131: 0 | V131: 0 | W131: 0
B132: -7 | H132: UKNS | I132: Total | J132: 2015-09-01 | K132: 2016-03-01 | L132: 440000 | M132: =L131 -> 433000
A133: GSF Grand Banks | B133: (6), (8) | C133: semi | E133: 1984 | F133: 1500 | G133: 25000 | H133: Canada | I133: Husky | J133: 2013-01-01 | K133: 2015-09-01 | L133: 408000 | M133: 297000 | O133: 90 | P133: 75.48958333 | Q133: 0 | R133: 0 | T133: 0 | U133: 0 | V133: 0 | W133: 0
A134: Actinia | C134: semi | E134: 1982 | F134: 1500 | G134: 25000 | H134: India | I134: ONGC | J134: 2012-06-01 | K134: 2015-07-31 | L134: 190000 | M134: 222000 | O134: 0 | P134: 0 | Q134: 0 | R134: 0 | T134: 0 | U134: 0 | V134: 21 | W134: 0
A135: Transocean Winner | B135: (6), (7) | C135: semi | E135: 1983 | F135: 1500 | G135: 25000 | H135: NNS | I135: Marathon | J135: 2013-01-01 | K135: 2015-06-30 | L135: 425000 | M135: 495000 | O135: 0 | P135: 0 | Q135: 0 | R135: 0 | T135: 0 | U135: 0 | V135: 0 | W135: 0
B136: (6), (7) | H136: NNS | I136: Marathon | J136: =+K135 -> 2015-06-30 | K136: 2016-07-01 | L136: 499000 | M136: =+L135 -> 425000
A137: Transocean Searcher | B137: (6), (7) | C137: semi | E137: 1983/1988 | F137: 1500 | G137: 25000 | H137: NNS | I137: BG | J137: 2012-06-01 | K137: 2015-06-01 | L137: 368000 | M137: 447000 | O137: 0 | P137: 0 | Q137: 0 | R137: 0 | T137: 0 | U137: 0 | V137: 0 | W137: 0
H138: NNS | I138: Edison SpA | J138: =+K137 -> 2015-06-01 | K138: 2015-07-25 | L138: 340000 | M138: =+L137 -> 368000
A139: Transocean Prospect | B139: -7 | C139: semi | E139: 1983/1992 | F139: 1500 | G139: 25000 | H139: UKNS | I139: Conoco Phillips | J139: 2014-11-01 | K139: 2015-01-01 | L139: 409000 | M139: 403000 | O139: 0 | P139: 0 | Q139: 0 | R139: 0 | T139: 0 | U139: 0 | V139: 0 | W139: 0
B140: -7 | H140: UKNS | I140: Conoco Phillips | J140: 2015-01-01 | K140: 2015-05-01 | L140: 373000 | M140: 409000
A141: Sedco 704 | B141: (7) | C141: semi | E141: 1974/1993 | F141: 1000 | G141: 25000 | H141: UKNS | I141: Maersk | J141: 2013-06-01 | K141: 2015-08-31 | L141: 365000 | M141: 335000 | O141: 0 | P141: 0 | Q141: 0 | R141: 0 | T141: 0 | U141: 0 | V141: 0 | W141: 0
H142: UKNS | I142: Maersk | J142: =+K141 -> 2015-08-31 | K142: 2016-02-01 | L142: 371000 | M142: =+L141 -> 365000
M144: Total Estimated Days Out of Service | O144: =SUM(O116:O141) -> 210.9166667 | P144: =SUM(P116:P141) -> 148.84375 | Q144: =SUM(Q116:Q141) -> 188.0625 | R144: =SUM(R116:R141) -> 75 | T144: =SUM(T116:T141) -> 0 | U144: =SUM(U116:U141) -> 0 | V144: =SUM(V116:V141) -> 43 | W144: =SUM(W116:W141) -> 23
M145: Estimated Average Contract Dayrate(5) | O145: 345000 | P145: 352000 | Q145: 361000 | R145: 362000 | T145: 350000 | U145: 352000 | V145: 377000 | W145: 387000
A147: High Specification Jackups (10)
A149: GSF Constellation I | B149: -8 | E149: 2003 | F149: 400 | G149: 30000 | H149: Indonesia | I149: Total | J149: 2012-09-01 | K149: 2016-01-01 | L149: 150000 | M149: 140000 | O149: 0 | P149: 0 | Q149: 0 | R149: 0 | T149: 0 | U149: 0 | V149: 0 | W149: 0
A150: GSF Constellation II | B150: -6 | E150: 2004 | F150: 400 | G150: 30000 | H150: Gabon | I150: Vaalco | J150: 2014-10-31 | K150: 2016-07-01 | L150: 167000 | M150: 165000 | O150: 0 | P150: 0 | Q150: 0 | R150: 0 | T150: 0 | U150: 0 | V150: 0 | W150: 0
A151: GSF Galaxy I | B151: -7 | E151: 1991/2001 | F151: 400 | G151: 30000 | H151: UKNS | I151: Total | J151: 2014-11-01 | K151: 2015-05-01 | L151: 211000 | M151: 211000 | O151: 90 | P151: 48.14583333 | Q151: 0 | R151: 0 | T151: 0 | U151: 0 | V151: 0 | W151: 0
B152: -7 | H152: UKNS | I152: Total | J152: 2015-05-01 | K152: 2015-11-30 | L152: 214000 | M152: 211000
B153: -7 | H153: UKNS | I153: Total | J153: 2015-11-30 | K153: 2016-05-30 | L153: 218000 | M153: 214000
B154: -7 | H154: UKNS | I154: Total | J154: 2016-05-30 | K154: 2016-11-30 | L154: 221000 | M154: 218000
B155: -7 | H155: UKNS | I155: Total | J155: 2016-11-30 | K155: 2017-05-30 | L155: 224000 | M155: 221000
A156: GSF Galaxy II | B156: -7 | E156: 1998 | F156: 400 | G156: 30000 | H156: UKNS | I156: GDF Suez | J156: 2014-11-01 | K156: 2015-03-31 | L156: 214000 | M156: 207000 | O156: 31 | P156: 0 | Q156: 0 | R156: 0 | T156: 0 | U156: 0 | V156: 0 | W156: 0
A157: GSF Galaxy III | E157: 1999 | F157: 400 | G157: 30000 | H157: Denmark | I157: Maersk | J157: 2014-11-18 | K157: 2015-03-31 | L157: 175000 | M157: 160000 | O157: 0 | P157: 0 | Q157: 6.125 | R157: 44 | T157: 0 | U157: 80 | V157: 0 | W157: 0
A158: Transocean Honor | B158: (6), (13) | E158: 2012 | F158: 400 | G158: 30000 | H158: Angola | I158: Chevron | J158: 2012-05-01 | K158: 2015-04-01 | L158: 155000 | M158: N/A | O158: 0 | P158: 0 | Q158: 0 | R158: 0 | T158: 9 | U158: 0 | V158: 0 | W158: 0
B159: (6) | H159: Angola | I159: Chevron | J159: 2015-04-30 | K159: 2016-04-30 | L159: 194000 | M159: 155000
A160: GSF Monarch | B160: -7 | E160: 1986 | F160: 350 | G160: 30000 | H160: UKNS | I160: GDF Suez | J160: 2014-09-01 | K160: 2015-03-01 | L160: 165000 | M160: 168000 | O160: 0 | P160: 0 | Q160: 0 | R160: 0 | T160: 0 | U160: 0 | V160: 0 | W160: 0
A161: Transocean Andaman | B161: (6), (8) | E161: 2013 | F161: 350 | G161: 35000 | H161: Thailand | I161: Chevron | J161: 2013-05-17 | K161: 2016-05-24 | L161: 150000 | M161: N/A | O161: 0 | P161: 0 | Q161: 0 | R161: 0 | T161: 0 | U161: 0 | V161: 5 | W161: 3
A162: Transocean Siam Driller | B162: (6), (8) | E162: 2013 | F162: 350 | G162: 35000 | H162: Thailand | I162: Chevron | J162: 2013-03-27 | K162: 2018-03-26 | L162: 140000 | M162: N/A | O162: 0 | P162: 0 | Q162: 0 | R162: 0 | T162: 0 | U162: 0 | V162: 8 | W162: 0
A163: Transocean Ao Thai | B163: (6), (8) | E163: 2013 | F163: 350 | G163: 35000 | H163: Thailand | I163: Chevron | J163: 2013-10-10 | K163: 2018-09-10 | L163: 139000 | M163: N/A | O163: 0 | P163: 0 | Q163: 0 | R163: 0 | T163: 0 | U163: 0 | V163: 0 | W163: 0
M164: Total Estimated Days Out of Service | O164: =SUM(O149:O163) -> 121 | P164: =SUM(P149:P163) -> 48.14583333 | Q164: =SUM(Q149:Q163) -> 6.125 | R164: =SUM(R149:R163) -> 44 | T164: =SUM(T149:T163) -> 9 | U164: =SUM(U149:U163) -> 80 | V164: =SUM(V149:V163) -> 13 | W164: =SUM(W149:W163) -> 3
M165: Estimated Average Contract Dayrate(5) | O165: 158000 | P165: 166000 | Q165: 165000 | R165: 167000 | T165: 167000 | U165: 163000 | V165: 165000 | W165: 165000
M168: Total Estimated Days Out of Service | O168: =+O164+O144+O111+O79+O62 -> 499.7708333 | P168: =+P164+P144+P111+P79+P62 -> 510.96875 | Q168: =+Q164+Q144+Q111+Q79+Q62 -> 721.75 | R168: =+R164+R144+R111+R79+R62 -> 632.7291667 | T168: =+T164+T144+T111+T79+T62 -> 323 | U168: =+U164+U144+U111+U79+U62 -> 475 | V168: =+V164+V144+V111+V79+V62 -> 179 | W168: =+W164+W144+W111+W79+W62 -> 89
A171: Fixed-Price Options - See Footnote 10
A175: High Specification Floater: Ultra-Deepwater
A177: Deepwater Asgard | C177: ship | D177: « | E177: 2014 | F177: 12000 | G177: 40000 | H177: TBA | I177: TBA | J177: 2017-06-23 | K177: 2018-06-23 | L177: 530000 | M177: 600000
A178: Dhirubhai Deepwater KG2 | B178: -18 | C178: ship | D178: « | E178: 2010 | F178: 12000 | G178: 35000 | H178: India | I178: Reliance | J178: 2015-10-16 | K178: 2016-01-13 | L178: 395000 | M178: 395000
A179: GSF Development Driller II | B179: -6 | C179: semi | D179: « | E179: 2005 | F179: 7500 | G179: 37500 | H179: Romania | I179: Lukoil | J179: 2015-07-28 | K179: 2016-02-08 | L179: 400000 | M179: 355000
A180: Discoverer Enterprise | C180: ship | D180: « | E180: 1999 | F180: 10000 | G180: 35000 | H180: USGOM | I180: BP | J180: 2015-06-22 | K180: 2015-09-19 | L180: 415000 | M180: 399000
H181: USGOM | I181: BP | J181: =+K180 -> 2015-09-19 | K181: 2015-12-18 | L181: 415000 | M181: 415000
H182: USGOM | I182: BP | J182: =+K181 -> 2015-12-18 | K182: 2016-03-17 | L182: 415000 | M182: 415000
H183: USGOM | I183: BP | J183: =+K182 -> 2016-03-17 | K183: 2016-06-15 | L183: 415000 | M183: 415000
A184: Cajun Express | C184: semi | D184: « | E184: 2001 | F184: 8500 | G184: 35000 | H184: Ivory Coast | I184: CNR | J184: 2015-12-15 | K184: 2016-02-01 | L184: 495000 | M184: 495000
A186: High Specification Floater: Deepwater
A188: Jack Bates | C188: semi | E188: 1986/1997 | F188: 5400 | G188: 30000 | H188: Australia | I188: Inpex | J188: 2016-02-19 | K188: 2016-11-16 | L188: 370000 | M188: 370000
A189: Transocean Marianas | B189: (6), (8) | C189: semi | E189: 1979/1998 | F189: 7000 | G189: 30000 | H189: South Africa | I189: PetroSA | J189: 2015-04-01 | K189: 2015-09-01 | L189: 370000 | M189: 370000
B190: (6), (8) | H190: South Africa | I190: PetroSA | J190: 2015-09-01 | K190: 2016-02-01 | L190: 370000 | M190: 370000
A192: High Specification Floater: Harsh Environment
A194: Polar Pioneer | B194: -6 | C194: semi | E194: 1985 | F194: 1500 | G194: 25000 | H194: Alaska | I194: Shell | J194: 2017-06-17 | K194: 2017-10-31 | L194: 623000 | M194: 589000
A195: Paul B. Loyd, Jr. | B195: -7 | C195: semi | E195: 1990 | F195: 2000 | G195: 25000 | H195: UKNS | I195: BP | J195: 2017-06-01 | K195: 2017-09-01 | L195: 449000 | M195: 453000
B196: -7 | H196: UKNS | I196: BP | J196: 2017-09-01 | K196: 2018-03-01 | L196: 456000 | M196: =+L195 -> 449000
B197: -7 | H197: UKNS | I197: BP | J197: 2018-03-01 | K197: 2018-06-01 | L197: 463000 | M197: =+L196 -> 456000
A198: High Specification Jackups
A200: GSF Galaxy I | B200: (6), (7) | E200: 1991/2001 | F200: 400 | G200: 30000 | H200: UKNS | I200: Total | J200: 2017-05-28 | K200: 2018-05-27 | L200: 240000 | M200: 231000
B201: (6), (7) | H201: UKNS | I201: Total | J201: 2018-05-27 | K201: 2019-05-27 | L201: 250000 | M201: 240000
A203: Revenue Efficiency
A204: Revenue efficiency is defined as actual contract drilling revenues for the measurement period divided by the maximum revenue calculated for the measurement period, expressed as a percentage. Maximum revenue is defined as the greatest amount of contract drilling revenues the drilling unit could earn for the measurement period, excluding amounts related to incentive provisions. Revenue Efficiency does not apply during Out of Service Days (Shipyard, Mobilizations, Demobilizations, Contract Preparation).
C206: Q3 2014 Actual | D206: Q2 2014 Actual | E206: Q1 2014 Actual | F206: Q4 2013 Actual | G206: Q3 2013 Actual | H206: Q2 2013 Actual | I206: Q1 2013 Actual | J206: Q4 2012 Actual
A207: Ultra Deepwater | C207: 0.916 | D207: 0.94 | E207: 0.964 | F207: 0.8995562286 | G207: 0.925 | H207: 0.911 | I207: 0.838 | J207: 0.955
A208: Deepwater | C208: 0.933 | D208: 0.945 | E208: 1.005 | F208: 0.9495099193 | G208: 0.911 | H208: 0.918 | I208: 0.864 | J208: 0.909
A209: Harsh Environment Floaters | C209: 0.947 | D209: 0.957 | E209: 0.963 | F209: 0.9209016485 | G209: 0.999 | H209: 0.983 | I209: 0.976 | J209: 0.973
A210: Midwater Floaters | C210: 0.922 | D210: 0.97 | E210: 0.911 | F210: 0.9229659201 | G210: 0.953 | H210: 0.945 | I210: 0.921 | J210: 0.939
A211: High Specification Jackups | C211: 0.97 | D211: 0.973 | E211: 0.945 | F211: 0.971561512 | G211: 0.989 | H211: 0.986 | I211: 0.964 | J211: 0.952
A212: Total Fleet - Continuing Operations | C212: 0.926 | D212: 0.95 | E212: 0.957 | F212: 0.917 | G212: 0.94 | H212: 0.931 | I212: 0.88 | J212: 0.947
A214: Estimated Contract Drilling Revenue can be calculated as: Paid Days on Contract * Average Contract Dayrate * Revenue Efficiency

Sheet Footnotes
B2: =Report!A2 -> Updated: January 15, 2015
B3: =Report!A3 -> Revisions Noted in Bold
B5: Footnotes
A6: Prev
A7: (1) | B7: (1) | C7: Dates shown are the original service date and the date of the most recent upgrade, if any.
A8: (2) | B8: (2) | C8: Estimated Contract Start and Estimated Expiration Dates are calculated as follows: (1) for events estimated to occur between the 1st and 15th of a month, the previous month is reported (i.e. a contract which is estimated to commence on May 4, 2014 will be reported as commencing in April 2014) and (2) for events estimated to occur between the 16th and the end of a month, the actual month is reported (i.e. a contract which is estimated to commence on May 24, 2014 will be reported as commencing in May 2014). Expiration dates represent the company's current estimate of the earliest date the contract for each rig is likely to expire. Some rigs have two or more contracts in continuation, so the last line shows the estimated earliest availability. Many contracts permit the customer to extend the contract.
A9: (3) | B9: (3) | C9: Represents the full operating dayrate, although the average dayrate over the term of the contract will be lower and could be substantially lower. Does not reflect incentive programs which are typically based on the rig's operating performance against a performance curve. Please refer to the “Customer Contract Duration and Dayrates and Risks Associated with Operations” section of the Disclaimers & Definitions for a description of dayrates. This column may not reflect the rate currently being received under the contract as a result of an applicable standby rate or other rate, which typically is less than the contract dayrate.
A10: (4) | B10: (4) | C10: The out of service time represents those days where a rig is scheduled to be out of service and not be available to earn an operating dayrate. Please refer to the “Out of Service Days (Shipyards, Mobilizations, Demobilizations, Contract Preparation)” section of the Disclaimers & Definitions for a full description.
A11: (5) | B11: (5) | C11: Estimated Average Contract Dayrate is defined as the average contracted full operating dayrate to be earned per revenue earning day. See note (3) for definition of full operating dayrate.
A12: (6) | B12: (6) | C12: Reflects the current contracted dayrate which could reflect prior cost escalations and could change in the future due to further cost escalations.
A13: (7) | B13: (7) | C13: Reflects the current contracted dayrate which, along with costs, includes a foreign currency component. Changes in the value of the U.S. Dollar relative to certain foreign currencies will result in an adjustment to the dayrate according to the terms of the contract. The dayrate adjustment generally offsets the foreign currency exchange-related change in costs.
A14: (8) | B14: (8) | C14: Current contract provides for a bonus incentive opportunity not reflected in the stated current contract dayrate.
A15: (9) | B15: (9) | C15: On February 26, 2014, a subsidiary of Transocean Ltd. awarded contracts to Sembcorp Marine's subsidiary, Jurong Shipyard, in Singapore for construction of two newbuild dynamically positioned ultra-deepwater drillships. The two drillships are expected to be delivered from the shipyard in the second quarter of 2017 and the first quarter of 2018, respectively.
A16: (10) | B16: (10) | C16: Fixed price options may be exercised at the customer’s discretion. During periods when dayrates on new contracts are increasing relative to existing contracts, the likelihood of customers’ exercising fixed price options increases. During periods when dayrates on new contracts are decreasing relative to existing contracts, the likelihood of customers’ exercising fixed price options declines.
A17: (11) | B17: (11) | C17: The contract is expected to start in the quarter indicated. Factors that could influence the contract start date include shipyard delivery, customer acceptance, and mobilization to operating location, among others.
B18: (12) | C18: The first of five newbuild high-specification jackups contracted to Keppel FELS Limited's shipyard in Singapore is expected to be delivered from the shipyard in the first quarter of 2016 and the remaining four jackups delivered at approximately four-month intervals thereafter.
A19: (14) | B19: (13) | C19: The rig is owned by a joint venture in which the company owns less than a 100 percent interest. Dayrate reflects 100 percent of the contract rate.
A20: (15) | B20: (14) | C20: The customer may elect to have the operating dayrate for the last five years of the contract fluctuate based on crude oil price with a floor of $458,250 corresponding to a crude oil price of less than or equal to $50 per barrel, and a ceiling of $558,250 corresponding to a crude oil price of $100 per barrel or greater.
A21: (17) | B21: (15) | C21: While the customer has the option to add any out of service days to the end of the contract, the Estimated Expiration Date does not reflect any extension due to this option until actually exercised by the customer.
A22: (18) | B22: (16) | C22: Dayrate excludes additional premiums for parallel operations at well centers and dynamic position operations.
B23: (17) | C23: The rig is owned by Transocean Partners LLC in which the company owns less than a 100% interest. Please refer to Transocean Partners LLC (NYSE: RIGP) Fleet Status Report which can be found at www.transoceanpartners.com.
B24: (18) | C24: At the customer's discretion, the fixed priced option can be either three or five months.
B25: (19) | C25: Reflects the dayrate while the Sedco Energy is used for deepwater or dynamic positioning programs. While the rig is used for midwater moored programs, the dayrate will be $370,475.
B26: (20) | C26: Mobilization, customer commissioning and acceptance testing commenced in March 2014. Revenue of approximately $52 million earned from March 2014 to July 2014 will be recognized over the remaining three-year contract period ending in March 2017.
B27: (21) | C27: The dayrate for the last year of the contract will be set three months prior to the third anniversary of the contract commencement date, subject to a floor dayrate of $305,000 and a ceiling dayrate of $365,000, pursuant to the terms of the contract.
B28: (22) | C28: ENI has repudiated the contract. Transocean is contesting the termination, and it is taking legal action to recover its lost profits.
B29: (23) | C29: The customer has exercised a contract provision whereby the estimated dayrate will be $400,000 from approximately November 10, 2014 to December 31, 2014.

Sheet Stacked&Idle
A2: =Report!A2 -> Updated: January 15, 2015
A3: =Report!A3 -> Revisions Noted in Bold
A5: Rig Type/Name | B5: Start Date
A6: Stacked Rigs
A8: Midwater Floaters (1)
A9: GSF Aleutian Key | B9: 2010-01-09
A11: Idle (9)
A12: Discoverer Spirit | B12: 2014-12-01
A13: Jack Ryan | B13: 2014-09-18
A14: Deepwater Discovery | B14: 2014-11-18
A15: Deepwater Frontier | B15: 2015-01-07
A16: Deepwater Pathfinder | B16: 2014-11-01
A17: Deepwater Expedition | B17: 2014-12-03
A18: GSF Explorer | B18: 2014-11-19
A19: Sedco 707 | B19: 2015-01-12
A20: GSF Arctic III | B20: 2014-10-23
A23: Stacked and Idle rigs detailed above are not currently operating on contract. Start date denotes when rig commences idle or stacked status.
A24: An "Idle" rig is between contracts, readily available for operations, and operating costs are typically at or near normal levels. A "Stacked" rig, on the other hand, is manned by a reduced crew or unmanned and typically has reduced operating costs and is (i) preparing for an extended period of inactivity, (ii) expected to continue to be inactive for an extended period, or (iii) completing a period of extended inactivity. However, stacked rigs will continue to incur operating costs at or above normal operating costs for 30 to 60 days following initiation of stacking.
J167: 2013-06-01
I168: =+J167 -> 2013-06-01 | J168: 2013-09-01

Sheet Disclaimers&Definitions
A3: DISCLAIMERS & DEFINITIONS
